Cogmind - Beta 13 X1 @@@ ROGUE MODE // 2023.08.18 @ 12:34:43 Player: VR-DUX Result: Destroyed by D-53 Grenadier with Mini Grenade Launcher Performance ------------- Evolutions (0) 0 Regions Visited (2) 400 Robots Destroyed (27) 135 Value Destroyed (305) 305 Prototype IDs (1) 20 Alien Tech Used (0) 0 Bonus (0) 0 TOTAL SCORE: 860 Bonus ------- None Cogmind --------- Core Integrity 0/250 Matter 246/300 Energy 100/100 System Corruption 0% Temperature Cool (0) Movement Core (350) Ox6 Location -10/Mines Parts ------- > --- POWER (1) -------- (None) > --- PROPULSION (2) --- (None) > --- UTILITY (2) ------ Large Storage Unit Structural Scanner > --- WEAPON (2) ------- (None) > --- INVENTORY (15) --- Light Ion Engine Light Treads Light Treads Light Treads Medium Storage Unit Large Storage Unit EM Pulse Gun Improved EM Shotgun Assault Rifle Assault Rifle Light Cannon Light Cannon Hammer Peak State ------------ > --- POWER ------------ Ion Engine > --- PROPULSION ------- Light Treads Light Treads > --- UTILITY ---------- Large Storage Unit Structural Scanner > --- WEAPON ----------- EM Pulse Gun Light Cannon > --- INVENTORY -------- Light Ion Engine Light Ion Engine Aluminum Leg Aluminum Leg Small Laser Assault Rifle Assault Rifle Light Assault Rifle Light Cannon Hammer [Rating: 8] Favorites ----------- Power Ion Engine Engine Ion Engine Propulsion Light Treads Treads Light Treads Leg Aluminum Leg Utility Structural Scanner Device Structural Scanner Storage Large Storage Unit Weapon Assault Rifle Energy Gun EM Pulse Gun Ballistic Gun Assault Rifle Ballistic Cannon Light Cannon Launcher Grenade Launcher Impact Weapon Hammer Build | -11 -10 -10 ------- Run | Jun Mat Min Slots Evolved . | . . . Power . | . . . Propulsion . | . . . Utility . | . . . Weapon . | . . . Parts Attached 18 | 1 15 2 Power 2 | . 2 . Engine 2 | . 2 . Core . | . . . Reactor . | . . . Propulsion 2 | . 2 . Treads 2 | . 2 . Leg . | . . . Wheel . | . . . Hover . | . . . Flight . | . . . Utility 3 | 1 2 . Device 2 | 1 1 . Storage 1 | . 1 . Processor . | . . . Hackware . | . . . Protection . | . . . Artifact . | . . . Weapon 11 | . 9 2 Energy Gun 3 | . 2 1 Energy Cannon . | . . . Ballistic Gun 3 | . 2 1 Ballistic Cannon 3 | . 3 . Launcher 1 | . 1 . Special Weapon . | . . . Impact Weapon 1 | . 1 . Slashing Weapon . | . . . Piercing Weapon . | . . . Special Melee Weapon . | . . . Unidentified Prototypes 1 | . 1 . Parts Lost 7 | . 2 5 Power 1 | . . 1 Propulsion 2 | . . 2 Utility . | . . . Weapon 4 | . 2 2 Highest Loss Streak 5 | . 1 5 To Critical Strikes . | . . . Average Slot Usage (%) 94 | . 94 97 Engine 9 | . 9 14 Treads 24 | . 24 26 Leg 2 | . 3 . Device 14 | . 14 14 Storage 14 | . 14 14 Energy Gun 8 | . 7 13 Ballistic Gun 10 | . 12 . Ballistic Cannon 4 | . 4 . Launcher 4 | . 2 13 Naked Turns . | . . . Heaviest Build 31 | 14 31 29 Greatest Support 40 | 20 40 40 Greatest Overweight (x) 6 | . . 6 Average Overweight (x) . | . . . Largest Inventory Capacity 15 | 8 15 15 Average Capacity 13 | 8 14 15 Most Carried 15 | 5 15 14 Average Carried 11 | 4 11 13 Final Capacity 15 | 8 15 15 Final Carried 14 | 5 14 13 Class Distribution -------------------- 100% | Mutant Dominant Class ---------------- Mutant | -10/Materials Mutant | -10/Mines Resources | -11 -10 -10 ----------- Run | Jun Mat Min Matter Collected 775 | 228 520 27 Remotely . | . . . Salvage Created 745 | 109 604 32 Parts 52 | 8 44 . Haulers Intercepted 2 | . 2 . Recyclers Shooed 9 | 1 8 . Parts Field Recycled . | . . . Retrieved Matter . | . . . Parts Self-Destructed . | . . . Prevented . | . . . Kills | -11 -10 -10 ------- Run | Jun Mat Min Combat Hostiles Destroyed 23 | . 12 11 Guns 4 | . 3 1 Cannons 6 | . 6 . AOE 13 | . 3 10 Classes Destroyed 8 | 2 5 1 Builder 2 | . 2 . Tunneler 3 | 2 . 1 Hauler 2 | . 2 . Recycler 6 | 1 5 . Watcher 2 | . 2 . Swarmer 9 | . 9 . Grunt 3 | . 3 . Assembled 11 | . . 11 Best Kill Streak 12 | 2 4 12 Combat Bots Only 11 | . 3 11 Max Kills in Single Turn 4 | 1 1 4 Gunslinging . | . . . Exploded 4 | . 1 4 Melee . | . . . Uniques/NPCs Destroyed . | . . . Combat | -11 -10 -10 -------- Run | Jun Mat Min Damage Taken 858 | . 364 494 Core 264 | . 68 196 Absorbed by Shields . | . . . Core Remaining (%) 100 | 100 . . Volleys Fired 126 | 6 110 10 Largest 2 | 2 2 1 Hottest 60 | 60 60 40 Shots Fired 142 | 12 120 10 Gun 75 | 12 59 4 Cannon 56 | . 56 . Launcher 11 | . 5 6 Special . | . . . Kinetic 101 | 6 95 . Thermal 14 | 6 8 . Explosive 11 | . 5 6 Electromagnetic 16 | . 12 4 Robot Hit Streak 7 | 3 7 2 Robot Miss Streak 3 | 2 3 3 Penetration Max . | . . . Secondary Targets . | . . . Shots Hit Robots 73 | 7 63 3 Core Hits 53 | 4 31 18 Critical Kills 1 | . 1 . Critical Parts Destroyed . | . . . Critical Strikes 3 | . 3 . Destroy 1 | . 1 . Blast 2 | . 2 . Melee Attacks 2 | . 2 . Impact 2 | . 2 . Slashing . | . . . Piercing . | . . . Sneak Attacks . | . . . Combat Hostiles . | . . . Follow-up Attacks . | . . . Damage Inflicted 1959 | 79 1298 582 Guns 589 | 79 488 22 Cannons 522 | . 522 . Explosions 848 | . 288 560 Melee . | . . . Ramming . | . . . Kinetic 875 | 36 839 . Thermal 132 | 43 89 . Explosive 803 | . 243 560 Electromagnetic 149 | . 127 22 Impact . | . . . Slashing . | . . . Piercing . | . . . Highest Corruption . | . . . Average Corruption . | . . . Corruption Purged . | . . . Corruption Blocked . | . . . Overload Shots . | . . . Overflow Damage 65 | . 22 43 Projectiles 20 | . 20 . Explosions 45 | . 2 43 Melee . | . . . Knockbacks 8 | . 8 . Impact . | . . . Kinetic 8 | . 8 . Secondary . | . . . Self-Inflicted Damage . | . . . Shots . | . . . Rammed . | . . . Targets Rammed . | . . . Kicked . | . . . Crushed . | . . . Highest Temperature . | . . . Average Temperature . | . . . Received Heat Transfer 18 | . 18 . Siege Activations . | . . . Robots Corrupted . | . . . Combat Hostiles . | . . . Parts Fried . | . . . Impact Corruptions . | . . . Robots Melted . | . . . Combat Hostiles . | . . . Parts Melted . | . . . Heat Transferred 250 | 100 150 . Parts Sabotaged . | . . . Parts Stolen . | . . . Parts Stripped . | . . . Power Chain Reactions 1 | . 1 . Missiles Intercepted . | . . . Alert | -11 -10 -10 ------- Run | Jun Mat Min Peak Influence 214 | 15 214 39 Initial 28 | . 9 28 Average 59 | 9 66 26 Maximum Alert Level 1 | . 1 . Low Security (%) 97 | 100 96 100 Level 1 2 | . 3 . Level 2 . | . . . Level 3 . | . . . Level 4 . | . . . Level 5 . | . . . High Security . | . . . Max Security . | . . . Squads Dispatched 2 | . 2 . Investigation 2 | . 2 . Extermination . | . . . Reinforcement . | . . . Assault . | . . . Garrison . | . . . Intercept . | . . . Searches Triggered . | . . . Construction Impeded . | . . . Haulers Reinforced . | . . . Active Scanning Responses . | . . . Cargo Convoy Interrupts . | . . . Stealth | -11 -10 -10 --------- Run | Jun Mat Min Distress Signals . | . . . Communications Jammed . | . . . Distress Signals . | . . . Times Spotted 46 | . 25 21 Peak Tracking Total 14 | . 3 14 Tactical Retreats 1 | . 1 . Traps | -11 -10 -10 ------- Run | Jun Mat Min Traps Triggered 1 | . 1 . Indirectly . | . . . Trap Hack Attempts . | . . . Triggered . | . . . Disarmed . | . . . Reprogrammed . | . . . Reused . | . . . Traps Extracted . | . . . Installed . | . . . Triggered . | . . . Machines | -11 -10 -10 ---------- Run | Jun Mat Min Machines Disabled 1 | . 1 . Max in Single Turn 1 | . 1 . Machines Repaired . | . . . Machines Sabotaged . | . . . Overloaded Fab Kills . | . . . Hacking | -11 -10 -10 --------- Run | Jun Mat Min Machines Accessed 7 | . 7 . Terminals 5 | . 5 . Fabricators . | . . . Repair Stations . | . . . Recycling Units 2 | . 2 . Scanalyzers . | . . . Garrison Access . | . . . Total Hacks 13 | . 13 . Successful 7 | . 7 . Failed 5 | . 5 . Catastrophic 1 | . 1 . Database Lockouts 1 | . 1 . Manual 9 | . 9 . Terminals 9 | . 9 . Fabricators . | . . . Repair Stations . | . . . Recycling Units 4 | . 4 . Scanalyzers . | . . . Garrison Access . | . . . Terminal Hacks 4 | . 4 . Record 1 | . 1 . Robot Analysis 1 | . 1 . Branch Access Points 1 | . 1 . Zone Layout 1 | . 1 . Fabricator Hacks . | . . . Repair Station Hacks . | . . . Recycling Unit Hacks 2 | . 2 . Retrieve Components 2 | . 2 . Scanalyzer . | . . . Garrison Access Hacks . | . . . Unauthorized Hacks 1 | . 1 . Terminals 1 | . 1 . Botnet 1 | . 1 . Fabricators . | . . . Repair Stations . | . . . Recycling Units . | . . . Scanalyzers . | . . . Garrison Access . | . . . Data Cores Recovered . | . . . Used . | . . . Hacking Detections 7 | . 7 . Full Trace Events 1 | . 1 . Feedback Events . | . . . Feedback Blocked . | . . . Robot Schematics Acquired . | . . . Robots Built . | . . . Authchips . | . . . Time . | . . . Total Robot Build Rating . | . . . Part Schematics Acquired . | . . . Parts Built . | . . . Authchips . | . . . Time . | . . . Total Part Build Rating . | . . . Parts Repaired . | . . . Time . | . . . Parts Recycled . | . . . Recycled Matter . | . . . Retrieved Matter . | . . . Retrieved Components 13 | . 13 . Parts Scanalyzed . | . . . Part Schematics Acquired . | . . . Parts Damaged . | . . . Bothacking | -11 -10 -10 ------------ Run | Jun Mat Min Used RIF Installer . | . . . Robots Hacked . | . . . Non-combat . | . . . Combat . | . . . Robot Hacks Applied . | . . . Relay Couplers Released . | . . . Fabnet Peak Effective % . | . . . Robots Rewired . | . . . Allies Hacked . | . . . Hacks Repelled . | . . . Allies | -11 -10 -10 -------- Run | Jun Mat Min Total Allies 1 | . . 1 Largest Group 1 | . . 1 Highest-Rated Group 31 | . . 31 Highest-Rated Ally 31 | . . 31 Total Orders . | . . . Ally Attacks 5 | . . 5 Total Damage 63 | . . 63 Kills 1 | . . 1 Allies Corrupted . | . . . Allies Melted . | . . . Intel | -11 -10 -10 ------- Run | Jun Mat Min Robot Analysis Total 1 | . 1 . Derelict Logs Recovered 1 | . . 1 Drone Launches . | . . . Drone Recoveries . | . . . Exploration | -11 -10 -10 ------------- Run | Jun Mat Min Turns Passed 1725 | 68 1444 213 Spaces Moved 874 | 14 744 116 Core 1 | . . 1 Treads 748 | . 633 115 Legs 125 | 14 111 . Wheels . | . . . Hover . | . . . Flight . | . . . Fastest Speed 120 | 120 120 160 Average Speed 154 | 120 154 165 Slowest Speed 350 | 120 160 350 Overloaded Moves . | . . . Propulsion Burnouts . | . . . Robots Hopped . | . . . Cave-ins Triggered . | . . . Exploration Rate (%) 41 | 2 96 27 Regions Visited 2 Branch Regions 1 Pre-discovered Areas 1 | . . 1 Known Exits Taken 1 | . 1 . Unknown Exits Taken 1 | 1 . . Scrap Searched 1 | . . 1 Spaces Dug 1 | . 1 . Terrain Destroyed 57 | . 24 33 Melee 1 | . 1 . Projectile . | . . . AOE 56 | . 23 33 Terrain Rammed . | . . . Walls Destroyed . | . . . Machines Disabled . | . . . Actions | -11 -10 -10 --------- Run | Jun Mat Min Total 1103 | 53 921 129 Wait 46 | 30 16 . Move 872 | 13 743 116 Hop . | . . . Pick Up 20 | 1 19 . Fast Attach 5 | 1 4 . Attach 7 | . 6 1 Detach 2 | . 2 . Swap 7 | . 6 1 Drop 16 | 2 13 1 Fire 126 | 6 110 10 Melee 2 | . 2 . Ram . | . . . Kick . | . . . Crush . | . . . Escape Stasis . | . . . Rewire . | . . . Trap . | . . . Miscellaneous . | . . . Route ------- -11/Junkyard -10/Materials (discovered 4 exits: [*Mat x3] / *Min) -10/Mines History --------- Turn | Location | Event 8 | -11/Junkyard | Discovered new exit (range 3) 69 | -11/Junkyard | Entered Materials 171 | -10/Materials | Central database locked down 302 | -10/Materials | Build established: Mutant 500 | -10/Materials | Discovered new exit (range 8) 557 | -10/Materials | Identified exit to Mines 916 | -10/Materials | Discovered new exit (range 3) 1106 | -10/Materials | Discovered new exit (range 6) 1513 | -10/Materials | Entered Mines 1516 | -10/Mines | Received a Mining Laser from a helpful Derelict 1566 | -10/Mines | Met a Derelict bent on vengeance 1668 | -10/Mines | Assembled infested the area 1673 | -10/Mines | Assisted by a Guerilla fighting off Assembled 1723 | -10/Mines | Core integrity fell below 50% 1726 | -10/Mines | Core integrity fell below 20% 1726 | -10/Mines | Destroyed by D-53 Grenadier with Mini Grenade Launcher Last Messages --------------- 01700_ as-57336 destroyed. 01700_ as-84888 destroyed. 01702_ T-07 Excavator destroyed. 01702_ as-04033 destroyed. 01704_ as-88535 destroyed. 01704_ as-95636 destroyed. 01705_ The unstable cave ceiling collapses. 01709_ Lgt. Treads destroyed. 01710_ as-33985 destroyed. 01716_ C-30 ARC bursts open, deploying its payload. 01716_ D-53 Grenadier unfolds itself. 01717_ Grenade Launcher destroyed. 01718_ The unstable cave ceiling collapses. 01720_ U-05 Engineer lays Concrete. 01720_ U-05 Engineer destroyed. 01720_ EM Pulse Gun destroyed. 01722_ The unstable cave ceiling collapses. 01722_ Lgt. Ion Engine destroyed. 01723_ Lgt. Treads destroyed. 01725_ as-10632 destroyed. Map ----- +----------------------------------------------------+ | ?????????????????????????????????????????????????? | | ?????????????????????????????????????????????????? | | ?????????????????????????????????????????????????? | | ?????????????????????????????????????????????????? | | ?????????????????????????????????????????????????? | | ?????????????????????????????????????????????????? | | ?????????????????????????????????????????????????? | | ?????????????????????????????????????????????????? | | ????????????????????????????????????????? ???????? | | ???????????????????????????????????????? ???????? | | ?????????????????????????????????## ??? ##?????? | | ?????????????????????????????????####? ##?????? | | ???????????????????????????????? ##### ###????? | | ????????????????????????????????## #### ## ????? | | ????????????????????????????????## "##% ????? | | ?????????????????????????????##### % ??????? | | ?????????????????????????????#####% "##??????? | | ????????? ????????# ##### %% "###??????? | | ???????? ?###################% %"###??????? | | ??????? " ###### # ###### % "##??????? | | ??????? "% # "##??????? | | ????????## d % a ;"##??????? | | ????????### d% a% ###????????? | | ?????????## % # ###????????? | | ?????????## ## ##?????????? | | ?????????### @ # ####???????? | | ?????????### """ ## ## ####???????? | | ??????????## """t## # # # ########## | | ?????????????""" ########### #### ########## | | ????????????? ?? ##################### | | ???????????? ????????????#############!########## | | ??????????? ??????????????####### ### ########## | | ??????????????????????????####### ##???????? | | ??????????????????????????### #####???????? | | ??????????????????????????## #####???????? | | ??????????????????????????## ## ####????????? | | ??????????????????????????### #### ####???????? | | ???????????????????????########?### ########### | | ??????????????????????############# ########## | | ??????????????????????## ####### | | ??????????????????????### | | ???????????????????????## ######## ##### | | ???????????????????????############ ###### | | ????????????????????????####?????## #####?## | | ?????????????????????????????????### #######??## | | ?????????????????????????????????###########????## | | ??????????????????????????????????#######???????## | | ?????????????????????????????????????????????????? | | ?????????????????????????????????????????????????? | | | +----------------------------------------------------+ Best States ------------- Heat Dissipation 25 Energy Generation 10 Energy Capacity 250 Matter Stores 300 Matter Capacity 300 Sight Range 16 Terrain Scan Density 10 Evasion (%) 55 Recoil Reduction 2 Item Schematics ----------------- None Robot Schematics ------------------ None Fabricated ------------ Nothing Alien Tech Used ----------------- None Achievements -------------- None Challenges ------------ None Game ------ Seed RagnarokServoScythe Manual? 0 Play Time 00:18:50 Cumulative 51.5 hours Start 2023.08.18 @ 12:17:48 End 2023.08.18 @ 12:34:43 Sessions 1 Manual Loads 0 Difficulty Rogue Special Mode None Game No. 29 Rogue 29 Adventurer 0 Explorer 0 Win Type - Total 0 Types 0/0/0/0/0/0/0/0/0 Lore% 30 Gallery% 27 Achievement% 35 Wizard Run 0 Options --------- ASCII 0 Keyboard 0 Movement Mouse Keybinds 0 Fullscreen 1 Font 16/SmallcapsGlow Map View 84x54 Tactical HUD 1 Map Filters NONE Filters NONE Steam 1 RUN: cb9208a2-cc0b-42a4-90b9-e322303e1d2c